fUST/lending_fUST_20260304
["ID","MTS","AMOUNT","RATE_DAILY","PERIOD"]
[407601540,1772565045867,-500.0,0.00010958,2]
[407601541,1772565045877,-1742.29,0.00010958,2]
[407601542,1772565045887,-623.64477508,0.00010958,2]
[407601543,1772565045898,-3675.46,0.00010958,2]
[407601544,1772565045909,-500.0,0.00010958,2]
[407601545,1772565045920,-500.0,0.00010958,2]
[407601546,1772565045931,-500.0,0.00010958,2]
[407601547,1772565045941,-2320.51,0.00010958,2]
[407601548,1772565045952,-500.0,0.00010958,2]
[407601549,1772565045962,-500.0,0.00010958,2]
[407601550,1772565045972,-1389.44,0.00010958,2]
[407601551,1772565045983,-2328.42,0.00010958,2]
[407601552,1772565045994,-1001.46,0.00010958,2]
[407601553,1772565046005,-2327.11,0.00010958,2]
[407601554,1772565046015,-500.0,0.00010958,2]
[407601555,1772565046026,-44793.68,0.00010958,2]
[407601556,1772565046036,-557.4302857,0.00010958,2]
[407601557,1772565046047,-1362.69,0.00010958,2]
[407601558,1772565046058,-500.0,0.00010958,2]
[407601559,1772565046069,-500.0,0.00010958,2]
[407601560,1772565046079,-500.0,0.00010958,2]
[407601561,1772565046093,-587.87,0.00010958,2]
[407601562,1772565046104,-2701.98,0.00010958,2]
[407601563,1772565046115,-1203.85,0.00010958,2]
[407601564,1772565046125,-10114.1,0.00010958,2]
[407601565,1772565046136,-500.0,0.00010958,2]
[407601566,1772565046148,-500.0,0.00010958,2]
[407601567,1772565046159,-500.0,0.00010958,2]
[407601568,1772565046170,-1678.74,0.00010958,2]
[407601569,1772565046181,-500.0,0.00010958,2]
[407601570,1772565046192,-975.47,0.00010958,2]
[407601571,1772565046203,-780.04,0.00010958,2]
[407601572,1772565046214,-7219.82,0.00010958,2]
[407601573,1772565046224,-25093.28,0.00010958,2]
[407601574,1772565046234,-512.44,0.00010958,2]
[407601575,1772565046245,-7913.85,0.00010958,2]
[407601576,1772565046255,-500.0,0.00010958,2]
[407601577,1772565046265,-1752.38,0.00010958,2]
[407601578,1772565046275,-500.0,0.00010958,2]
[407601579,1772565046286,-5329.52,0.00010958,2]
[407601580,1772565046296,-500.0,0.00010958,2]
[407601581,1772565046307,-16961.42,0.00010958,2]
[407601582,1772565046317,-3154.01,0.00010958,2]
[407601583,1772565046328,-500.0,0.00010958,2]
[407601584,1772565046340,-7278.52,0.00010958,2]
[407601585,1772565046351,-500.0,0.00010958,2]
[407601586,1772565046362,-500.0,0.00010958,2]
[407601587,1772565046372,-3715.99,0.00010958,2]
[407601588,1772565046383,-1256.56,0.00010958,2]
[407601589,1772565046393,-2878.62,0.00010958,2]
[407601590,1772565046404,-500.0,0.00010958,2]
[407601591,1772565046418,-1089.59,0.00010958,2]
[407601592,1772565046430,-172.7395064,0.00010958,2]
[407601593,1772565046440,-500.0,0.00010958,2]
[407601594,1772565046450,-500.0,0.00010958,2]
[407601595,1772565046460,-500.0,0.00010958,2]
[407601596,1772565046472,-606.11083873,0.00010958,2]
[407601597,1772565046482,-500.0,0.00010958,2]
[407601598,1772565046493,-500.0,0.00010958,2]
[407601599,1772565046504,-663.41,0.00010958,2]
[407601600,1772565046514,-500.0,0.00010958,2]
[407601601,1772565046525,-2415.68,0.00010958,2]
[407601602,1772565046535,-2693.69,0.00010958,2]
[407601603,1772565046545,-500.0,0.00010958,2]
[407601604,1772565046555,-2076.04,0.00010958,2]
[407601605,1772565046566,-500.0,0.00010958,2]
[407601606,1772565046576,-500.0,0.00010958,2]
[407601607,1772565046587,-1479.96,0.00010958,2]
[407601608,1772565046597,-1647.77,0.00010958,2]
[407601609,1772565046607,-1861.79,0.00010958,2]
[407601610,1772565046618,-1225.85,0.00010958,2]
[407601611,1772565046628,-611.06618426,0.00010958,2]
[407601612,1772565046638,-1011.55,0.00010958,2]
[407601613,1772565046650,-500.0,0.00010958,2]
[407601614,1772565046661,-8139.26,0.00010958,2]
[407601615,1772565046671,-518.58,0.00010958,2]
[407601616,1772565046681,-5872.16,0.00010958,2]
[407601617,1772565046692,-620.16,0.00010958,2]
[407601618,1772565046702,-2246.94,0.00010958,2]
[407601619,1772565046712,-500.0,0.00010958,2]
[407601620,1772565046723,-2528.15,0.00010958,2]
[407601621,1772565046733,-500.0,0.00010958,2]
[407601622,1772565046743,-885.29,0.00010958,2]
[407601623,1772565046754,-7096.09,0.00010958,2]
[407601624,1772565046764,-502.5,0.00010958,2]
[407601625,1772565046774,-500.0,0.00010958,2]
[407601626,1772565046784,-500.0,0.00010958,2]
[407601627,1772565046795,-500.0,0.00010958,2]
[407601628,1772565046806,-14448.13,0.00010958,2]
[407601629,1772565046816,-814.87,0.00010958,2]
[407601630,1772565046826,-500.0,0.00010958,2]
[407601631,1772565046837,-2031.63,0.00010958,2]
[407601632,1772565046848,-500.0,0.00010958,2]
[407601633,1772565046858,-500.0,0.00010958,2]
[407601634,1772565046869,-4974.72,0.00010958,2]
[407601635,1772565046879,-823.92,0.00010958,2]
[407601636,1772565046890,-1664.85,0.00010958,2]
[407601637,1772565046900,-500.0,0.00010958,2]
[407601638,1772565046911,-500.0,0.00010958,2]
[407601639,1772565046921,-1812.31,0.00010958,2]
[407601640,1772565046931,-4337.56,0.00010958,2]
[407601641,1772565046941,-500.0,0.00010958,2]
[407601642,1772565046951,-950.34,0.00010958,2]
[407601643,1772565046961,-500.0,0.00010958,2]
[407601644,1772565046971,-828.33,0.00010958,2]
[407601645,1772565046982,-730.54,0.00010958,2]
[407601646,1772565046992,-911.81,0.00010958,2]
[407601647,1772565047013,-500.0,0.00010958,2]
[407601648,1772565047026,-500.0,0.00010958,2]
[407601649,1772565047038,-1045.54,0.00010958,2]
[407601650,1772565047049,-2497.59,0.00010958,2]
[407601651,1772565047060,-500.0,0.00010958,2]
[407601652,1772565047072,-1758.48,0.00010958,2]
[407601653,1772565047083,-500.0,0.00010958,2]
[407601654,1772565047094,-623.15,0.00010958,2]
[407601655,1772565047105,-2621.49,0.00010958,2]
[407601656,1772565047116,-671.98,0.00010958,2]
[407601657,1772565047126,-500.0,0.00010958,2]
[407601658,1772565047137,-531.87034266,0.00010958,2]
[407601659,1772565047148,-500.0,0.00010958,2]
[407601660,1772565047159,-500.0,0.00010958,2]
[407601661,1772565047171,-500.0,0.00010958,2]
[407601662,1772565047181,-946.81,0.00010958,2]
[407601663,1772565047192,-4398.59,0.00010958,2]
[407601664,1772565047203,-500.0,0.00010958,2]
[407601665,1772565047214,-500.0,0.00010958,2]
[407601666,1772565047225,-3612.9,0.00010958,2]
[407601667,1772565047236,-500.0,0.00010958,2]
[407601668,1772565047247,-188.44453212,0.00010959,2]
[407601669,1772565047257,-600.0,0.00010972,2]
[407601670,1772565047268,-175.17,0.00010972,2]
[407601671,1772565047279,-175.17,0.00010972,2]
[407601672,1772565047290,-175.17,0.00010972,2]
[407601673,1772565047301,-175.17,0.00010972,2]
[407601674,1772565047312,-175.17,0.00010972,2]
[407601675,1772565047327,-175.17,0.00010972,2]
[407601676,1772565047339,-175.14,0.00010972,2]
[407601677,1772565047350,-2030.296672,0.00010999,2]
[407601678,1772565047362,-151.0,0.00011,2]
[407601679,1772565047374,-151.0,0.00011,2]
[407601680,1772565047384,-151.0,0.00011,2]
[407601681,1772565047398,-151.0,0.00011,2]
[407601682,1772565047409,-151.0,0.00011,2]
[407601683,1772565047420,-151.0,0.00011,2]
[407601684,1772565047430,-151.0,0.00011,2]
[407601685,1772565047442,-151.0,0.00011,2]
[407601686,1772565047453,-151.0,0.00011,2]
[407601687,1772565047464,-151.0,0.00011,2]
[407601688,1772565047477,-151.0,0.00011,2]
[407601689,1772565047488,-151.0,0.00011,2]
[407601690,1772565047500,-151.0,0.00011,2]
[407601691,1772565047860,-677.71276771,0.00011007,2]
[407601692,1772565047872,-163.65786,0.00011015,2]
[407601693,1772565047881,-2330.8572863,0.00011015,2]
[407601694,1772565047891,-45119.9323029,0.00011015,2]
[407601695,1772565047902,-160.0,0.00011028,2]
[407601696,1772565047912,-2105.41764886,0.00011054,2]
[407601697,1772565047921,-600.0,0.00011072,2]
[407601698,1772565047930,-500.54676593,0.00011072,2]
[407601699,1772565047940,-351.0,0.00011095,2]
[407601700,1772565047949,-351.0,0.00011095,2]
[407601701,1772565047959,-351.0,0.00011095,2]
[407601702,1772565047968,-154.83337774,0.00011095,2]
[407601703,1772565047977,-351.0,0.00011095,2]
[407601704,1772565047988,-351.0,0.00011095,2]
[407601705,1772565047997,-351.0,0.00011095,2]
[407601706,1772565048007,-351.0,0.00011095,2]
[407601707,1772565048017,-351.0,0.00011095,2]
[407601708,1772565048026,-351.0,0.00011095,2]
[407601709,1772565048035,-351.0,0.00011095,2]
[407601710,1772565048044,-351.0,0.00011095,2]
[407601711,1772565048053,-351.0,0.00011095,2]
[407601712,1772565048063,-351.0,0.00011095,2]
[407601713,1772565048072,-351.0,0.00011095,2]
[407601714,1772565048082,-351.0,0.00011095,2]
[407601715,1772565048091,-351.0,0.00011095,2]
[407601716,1772565048101,-351.0,0.00011095,2]
[407601717,1772565048110,-351.0,0.00011095,2]
[407601718,1772565048119,-351.0,0.00011095,2]
[407601719,1772565048128,-351.0,0.00011095,2]
[407601720,1772565048138,-351.0,0.00011095,2]
[407601721,1772565048147,-351.0,0.00011095,2]
[407601722,1772565048156,-351.0,0.00011095,2]
[407601723,1772565048166,-351.0,0.00011095,2]
[407601724,1772565048175,-351.0,0.00011095,2]
[407601725,1772565048185,-455.53229255,0.00011095,2]
[407601726,1772565048195,-154.0,0.00011095,2]
[407601727,1772565048206,-154.0,0.00011095,2]
[407601728,1772565048215,-154.0,0.00011095,2]
[407601729,1772565048225,-154.0,0.00011095,2]
[407601730,1772565048235,-154.0,0.00011095,2]
[407601731,1772565048244,-297.39921701,0.00011095,2]
[407601732,1772565048253,-885.01628245,0.000111,2]
[407601733,1772565048262,-151.0,0.000111,2]
[407601734,1772565048272,-151.0,0.000111,2]
[407601735,1772565048281,-151.0,0.000111,2]
[407601736,1772565048290,-151.0,0.000111,2]
[407601737,1772565048300,-151.0,0.000111,2]
[407601738,1772565048309,-151.0,0.000111,2]
[407601739,1772565048319,-151.0,0.000111,2]
[407601740,1772565048331,-151.0,0.000111,2]
[407601741,1772565048340,-151.0,0.000111,2]
[407601742,1772565048350,-151.0,0.000111,2]
[407601743,1772565048359,-151.0,0.000111,2]
[407601744,1772565048369,-950.60243133,0.00011109,2]
[407601745,1772565048379,-35676.57898311,0.0001112,2]
[407601746,1772565048388,-3938.29140544,0.0001112,2]
[407601747,1772565048398,-120262.90211628,0.0001112,2]
[407601748,1772565048410,-10545.85314765,0.00011132,2]
[407601749,1772565048419,-420.0,0.00011148,2]
[407601750,1772565048429,-1680.0,0.00011149,2]
[407601751,1772565048439,-300.0,0.00011176,2]
[407601752,1772565048448,-300.0,0.00011176,2]
[407601753,1772565048458,-300.0,0.00011176,2]
[407601754,1772565048468,-300.0,0.00011176,2]
[407601755,1772565048477,-300.0,0.00011176,2]
[407601756,1772565048487,-300.0,0.00011176,2]
[407601757,1772565048496,-300.0,0.00011176,2]
[407601758,1772565048506,-300.0,0.00011176,2]
[407601759,1772565048516,-300.0,0.00011176,2]
[407601760,1772565048527,-300.0,0.00011176,2]
[407601761,1772565048537,-300.0,0.00011176,2]
[407601762,1772565048547,-300.0,0.00011176,2]
[407601763,1772565048556,-300.0,0.00011176,2]
[407601764,1772565048566,-300.0,0.00011176,2]
[407601765,1772565048575,-300.0,0.00011176,2]
[407601766,1772565048586,-151.0,0.000112,2]
[407601767,1772565048595,-151.0,0.000112,2]
[407601768,1772565048605,-151.0,0.000112,2]
[407601769,1772565048615,-151.0,0.000112,2]
[407601770,1772565048626,-151.0,0.000112,2]
[407601771,1772565048636,-151.0,0.000112,2]
[407601772,1772565048647,-151.0,0.000112,2]
[407601773,1772565048658,-151.0,0.000112,2]
[407601774,1772565048668,-151.0,0.000112,2]
[407601775,1772565048678,-1093.02111798,0.00011222,2]
[407601776,1772565048688,-355.32946811,0.00011232,2]
[407601777,1772565048697,-406.0908207,0.00011232,2]
[407601778,1772565048709,-633.88239044,0.00011232,2]
[407601779,1772565048719,-500.0,0.00011232,2]
[407601780,1772565048728,-500.0,0.00011232,2]
[407601781,1772565048738,-219.06973435,0.00011232,2]
[407601782,1772565048748,-500.0,0.00011232,2]
[407601783,1772565048757,-500.0,0.00011232,2]
[407601784,1772565048766,-500.0,0.00011232,2]
[407601785,1772565048776,-222.1881515,0.00011232,2]
[407601786,1772565048786,-500.0,0.00011232,2]
[407601787,1772565048795,-500.0,0.00011232,2]
[407601788,1772565048806,-500.0,0.00011232,2]
[407601789,1772565048816,-500.0,0.00011232,2]
[407601790,1772565048826,-202.41761662,0.00011232,2]
[407601791,1772565048836,-1522.84,0.00011232,2]
[407601792,1772565048844,-627.72601765,0.00011232,2]
[407601793,1772565048854,-500.0,0.00011232,2]
[407601794,1772565048863,-500.0,0.00011232,2]
[407601795,1772565048872,-879.11,0.00011232,2]
[407601796,1772565048881,-2167.08,0.00011232,2]
[407601797,1772565048890,-500.0,0.00011232,2]
[407601798,1772565048901,-884.39,0.00011232,2]
[407601799,1772565048910,-500.0,0.00011232,2]
[407601800,1772565048919,-2233.19,0.00011232,2]
[407601801,1772565048929,-500.0,0.00011232,2]
[407601802,1772565048938,-636.63903106,0.00011232,2]
[407601803,1772565048947,-500.0,0.00011232,2]
[407601804,1772565048956,-500.0,0.00011232,2]
[407601805,1772565048966,-500.0,0.00011232,2]
[407601806,1772565048976,-500.0,0.00011232,2]
[407601807,1772565048986,-500.0,0.00011232,2]
[407601808,1772565048996,-500.0,0.00011232,2]
[407601809,1772565049006,-164.96456664,0.00011232,2]
[407601810,1772565049017,-500.0,0.00011232,2]
[407601811,1772565049026,-500.0,0.00011232,2]
[407601812,1772565049036,-2678.39,0.00011232,2]
[407601813,1772565049046,-394.32552183,0.00011232,2]
[407601814,1772565049056,-777.36,0.00011232,2]
[407601815,1772565049066,-701.02314993,0.00011232,2]
[407601816,1772565049076,-518.24,0.00011232,2]
[407601817,1772565049087,-500.0,0.00011232,2]
[407601818,1772565049098,-388.48059958,0.00011232,2]
[407601819,1772565049109,-500.0,0.00011232,2]
[407601820,1772565049119,-500.0,0.00011232,2]
[407601821,1772565049129,-699.26507924,0.00011232,2]
[407601822,1772565049140,-500.0,0.00011232,2]
[407601823,1772565049152,-500.0,0.00011232,2]
[407601824,1772565049162,-468.57290839,0.00011232,2]
[407601825,1772565049173,-500.0,0.00011232,2]
[407601826,1772565049183,-921.99,0.00011232,2]
[407601827,1772565049193,-500.0,0.00011232,2]
[407601828,1772565049202,-500.0,0.00011232,2]
[407601829,1772565049212,-500.0,0.00011232,2]
[407601830,1772565049222,-613.71,0.00011232,2]
[407601831,1772565049231,-500.0,0.00011232,2]
[407601832,1772565049241,-976.4,0.00011232,2]
[407601833,1772565049251,-500.0,0.00011232,2]
[407601834,1772565049260,-500.0,0.00011232,2]
[407601835,1772565049270,-1058.05,0.00011232,2]
[407601836,1772565049279,-500.0,0.00011232,2]
[407601837,1772565049288,-572.14,0.00011232,2]
[407601838,1772565049298,-561.66,0.00011232,2]
[407601839,1772565049310,-837.96,0.00011232,2]
[407601840,1772565049321,-500.0,0.00011232,2]
[407601841,1772565049332,-500.0,0.00011232,2]
[407601842,1772565049342,-500.0,0.00011232,2]
[407601843,1772565049351,-590.06974877,0.00011232,2]
[407601844,1772565049361,-321.72,0.00011232,2]
[407601845,1772565049370,-1311.35,0.00011232,2]
[407601846,1772565049380,-966.06,0.00011232,2]
[407601847,1772565049389,-1025.51,0.00011232,2]
[407601848,1772565049403,-500.0,0.00011232,2]
[407601849,1772565049412,-1049.68,0.00011232,2]
[407601850,1772565049422,-635.85,0.00011232,2]
[407601851,1772565049431,-3192.17,0.00011232,2]
[407601852,1772565049441,-1000.0,0.00011232,2]
[407601853,1772565049451,-399.9386727,0.00011232,2]
[407601854,1772565049461,-711.0020848,0.00011232,2]
[407601855,1772565049471,-500.0,0.00011232,2]
[407601856,1772565049481,-1410.02,0.00011232,2]
[407601857,1772565049491,-500.0,0.00011232,2]
[407601858,1772565049501,-500.0,0.00011232,2]
[407601859,1772565049510,-767.14,0.00011232,2]
[407601860,1772565049520,-1922.31,0.00011232,2]
[407601861,1772565049531,-500.0,0.00011232,2]
[407601862,1772565049541,-625.28,0.00011232,2]
[407601863,1772565049551,-500.0,0.00011232,2]
[407601864,1772565049560,-500.0,0.00011232,2]
[407601865,1772565049570,-508.99,0.00011232,2]
[407601866,1772565049579,-500.0,0.00011232,2]
[407601867,1772565049588,-500.0,0.00011232,2]
[407601868,1772565049598,-500.0,0.00011232,2]
[407601869,1772565049607,-500.0,0.00011232,2]
[407601870,1772565049617,-500.0,0.00011232,2]
[407601871,1772565049627,-1030.0,0.00011232,2]
[407601872,1772565049636,-1225.24,0.00011232,2]
[407601873,1772565049648,-500.0,0.00011232,2]
[407601874,1772565049658,-500.0,0.00011232,2]
[407601875,1772565049667,-500.0,0.00011232,2]
[407601876,1772565049677,-500.0,0.00011232,2]
[407601877,1772565049686,-500.0,0.00011232,2]
[407601878,1772565049695,-500.0,0.00011232,2]
[407601879,1772565049704,-500.0,0.00011232,2]
[407601880,1772565049714,-429.79016007,0.00011232,2]
[407601881,1772565049724,-500.0,0.00011232,2]
[407601882,1772565049733,-500.0,0.00011232,2]
[407601883,1772565049743,-500.0,0.00011232,2]
[407601884,1772565049751,-500.0,0.00011232,2]
[407601885,1772565049760,-1563.78,0.00011232,2]
[407601886,1772565049768,-981.02,0.00011232,2]
[407601887,1772565049777,-500.0,0.00011232,2]
[407601888,1772565049785,-500.0,0.00011232,2]
[407601889,1772565049796,-500.0,0.00011232,2]
[407601890,1772565049807,-500.0,0.00011232,2]
[407601891,1772565049818,-500.0,0.00011232,2]
[407601892,1772565049827,-1190.31,0.00011232,2]
[407601893,1772565049838,-587.17,0.00011232,2]
[407601894,1772565049848,-500.0,0.00011232,2]
[407601895,1772565049857,-500.0,0.00011232,2]
[407601896,1772565049867,-500.0,0.00011232,2]
[407601897,1772565049877,-500.0,0.00011232,2]
[407601898,1772565049886,-500.0,0.00011232,2]
[407601899,1772565049898,-669.42,0.00011232,2]
[407601900,1772565049907,-497.40419954,0.00011232,2]
[407601901,1772565049919,-619.35,0.00011232,2]
[407601902,1772565049931,-732.69,0.00011232,2]
[407601903,1772565049942,-500.0,0.00011232,2]
[407601904,1772565049952,-500.0,0.00011232,2]
[407601905,1772565049963,-780.91,0.00011232,2]
[407601906,1772565049974,-3211.49,0.00011232,2]
[407601907,1772565049984,-500.0,0.00011232,2]
[407601908,1772565049994,-538.37,0.00011232,2]
[407601909,1772565050004,-417.19331191,0.00011232,2]
[407601910,1772565050014,-500.0,0.00011232,2]
[407601911,1772565050024,-518.37,0.00011232,2]
[407601912,1772565050034,-500.0,0.00011232,2]
[407601913,1772565050044,-500.0,0.00011232,2]
[407601914,1772565050054,-519.98867702,0.00011232,2]
[407601915,1772565050064,-500.0,0.00011232,2]
[407601916,1772565050075,-500.0,0.00011232,2]
[407601917,1772565050085,-1982.67,0.00011232,2]
[407601918,1772565050098,-1008.92,0.00011232,2]
[407601919,1772565050110,-1018.62,0.00011232,2]
[407601920,1772565050123,-500.0,0.00011232,2]
[407601921,1772565050133,-500.0,0.00011232,2]
[407601922,1772565050143,-500.0,0.00011232,2]
[407601923,1772565050155,-500.0,0.00011232,2]
[407601924,1772565050165,-1477.93,0.00011232,2]
[407601925,1772565050176,-500.0,0.00011232,2]
[407601926,1772565050186,-860.08,0.00011232,2]
[407601927,1772565050195,-530.17,0.00011232,2]
[407601928,1772565050205,-663.59,0.00011232,2]
[407601929,1772565050214,-515.21260356,0.00011232,2]
[407601930,1772565050224,-500.0,0.00011232,2]
[407601931,1772565050234,-500.0,0.00011232,2]
[407601932,1772565050243,-500.0,0.00011232,2]
[407601933,1772565050252,-1414.22,0.00011232,2]
[407601934,1772565050262,-500.0,0.00011232,2]
[407601935,1772565050271,-500.0,0.00011232,2]
[407601936,1772565050280,-500.0,0.00011232,2]
[407601937,1772565050291,-830.74,0.00011232,2]
[407601938,1772565050301,-500.0,0.00011232,2]
[407601939,1772565050310,-3023.96,0.00011232,2]
[407601940,1772565050321,-518.33,0.00011232,2]
[407601941,1772565050334,-456.85563043,0.00011232,2]
[407601942,1772565050355,-2168.2,0.00011232,2]
[407601943,1772565050366,-654.83,0.00011232,2]
[407601944,1772565050379,-500.0,0.00011232,2]
[407601945,1772565050389,-1919.58,0.00011232,2]
[407601946,1772565050400,-500.0,0.00011232,2]
[407601947,1772565050411,-809.36,0.00011232,2]
[407601948,1772565050422,-500.0,0.00011232,2]
[407601949,1772565050432,-945.88,0.00011232,2]
[407601950,1772565050441,-500.0,0.00011232,2]
[407601951,1772565050452,-1094.25332309,0.00011232,2]
[407601952,1772565050462,-500.0,0.00011232,2]
[407601953,1772565050473,-7392.55,0.00011232,2]
[407601954,1772565050483,-500.0,0.00011232,2]
[407601955,1772565050494,-525.85,0.00011232,2]
[407601956,1772565050504,-468.96,0.00011232,2]
[407601957,1772565050514,-500.0,0.00011232,2]
[407601958,1772565050525,-500.0,0.00011232,2]
[407601959,1772565050536,-1243.13791864,0.00011232,2]
[407601960,1772565050546,-500.0,0.00011232,2]
[407601961,1772565050556,-500.0,0.00011232,2]
[407601962,1772565050565,-500.0,0.00011232,2]
[407601963,1772565050576,-1942.40299788,0.00011232,2]
[407601964,1772565050586,-6732.49,0.00011232,2]
[407601965,1772565050596,-500.0,0.00011232,2]
[407601966,1772565050606,-2797.06031695,0.00011232,2]
[407601967,1772565050617,-500.0,0.00011232,2]
[407601968,1772565050627,-6595.17,0.00011232,2]
[407601969,1772565050637,-1163.48,0.00011232,2]
[407601970,1772565050647,-563.12235341,0.00011232,2]
[407601971,1772565050657,-536.79,0.00011232,2]
[407601972,1772565050666,-500.0,0.00011232,2]
[407601973,1772565050676,-500.0,0.00011232,2]
[407601974,1772565050685,-500.0,0.00011232,2]
[407601975,1772565050695,-612.03,0.00011232,2]
[407601976,1772565050705,-500.0,0.00011232,2]
[407601977,1772565050715,-904.72,0.00011232,2]
[407601978,1772565050725,-2111.31,0.00011232,2]
[407601979,1772565050736,-500.0,0.00011232,2]
[407601980,1772565050746,-500.0,0.00011232,2]
[407601981,1772565050756,-500.0,0.00011232,2]
[407601982,1772565050766,-500.0,0.00011232,2]
[407601983,1772565050776,-1523.03,0.00011232,2]
[407601984,1772565050786,-500.0,0.00011232,2]
[407601985,1772565050796,-500.0,0.00011232,2]
[407601986,1772565050806,-1133.91,0.00011232,2]
[407601987,1772565050816,-500.0,0.00011232,2]
[407601988,1772565050826,-786.72,0.00011232,2]
[407601989,1772565050837,-500.0,0.00011232,2]
[407601990,1772565050847,-2613.94,0.00011232,2]
[407601991,1772565050861,-3056.98,0.00011232,2]
[407601992,1772565050871,-5123.49,0.00011232,2]
[407601993,1772565050881,-1025.76,0.00011232,2]
[407601994,1772565050891,-500.0,0.00011232,2]
[407601995,1772565050904,-500.0,0.00011232,2]
[407601996,1772565050913,-500.0,0.00011232,2]
[407601997,1772565050923,-2575.85,0.00011232,2]
[407601998,1772565050933,-500.0,0.00011232,2]
[407601999,1772565050943,-500.0,0.00011232,2]
[407602000,1772565050953,-500.0,0.00011232,2]
[407602001,1772565050963,-500.0,0.00011232,2]
[407602002,1772565050973,-1099.05,0.00011232,2]
[407602003,1772565050983,-520.53649092,0.00011232,2]
[407602004,1772565050993,-1374.87,0.00011232,2]
[407602005,1772565051003,-509.83,0.00011232,2]
[407602006,1772565051013,-865.02,0.00011232,2]
[407602007,1772565051023,-841.59,0.00011232,2]
[407602008,1772565051032,-500.0,0.00011232,2]
[407602009,1772565051042,-655.72,0.00011232,2]
[407602010,1772565051053,-500.0,0.00011232,2]
[407602011,1772565051063,-1929.9,0.00011232,2]
[407602012,1772565051073,-617.71,0.00011232,2]
[407602013,1772565051083,-500.0,0.00011232,2]
[407602014,1772565051093,-1944.56,0.00011232,2]
[407602015,1772565051103,-279.04611137,0.00011232,2]
[407602016,1772565051114,-1157.14,0.00011232,2]
[407602017,1772565051125,-500.0,0.00011232,2]
[407602018,1772565051135,-500.0,0.00011232,2]
[407602019,1772565051146,-1757.98,0.00011232,2]
[407602020,1772565051157,-500.0,0.00011232,2]
[407602021,1772565051167,-642.32,0.00011232,2]
[407602022,1772565051178,-1759.2,0.00011232,2]
[407602023,1772565051189,-500.0,0.00011232,2]
[407602024,1772565051199,-315.6271583,0.00011232,2]
[407602025,1772565051210,-500.0,0.00011232,2]
[407602026,1772565051226,-574.92,0.00011232,2]
[407602027,1772565051236,-500.0,0.00011232,2]
[407602028,1772565051248,-1977.73,0.00011232,2]
[407602029,1772565051259,-500.0,0.00011232,2]
[407602030,1772565051270,-500.0,0.00011232,2]
[407602031,1772565051280,-500.0,0.00011232,2]
[407602032,1772565051291,-1421.84,0.00011232,2]
[407602033,1772565051301,-1012.54,0.00011232,2]
[407602034,1772565051311,-500.0,0.00011232,2]
[407602035,1772565051326,-500.0,0.00011232,2]
[407602036,1772565051336,-1466.09,0.00011232,2]
[407602037,1772565051348,-1818.25,0.00011232,2]
[407602038,1772565051359,-1676.73,0.00011232,2]
[407602039,1772565051374,-662.51,0.00011232,2]